Cogmind - Beta 17.1 @@@ ROGUE MODE // 2026.09.01 @ 23:57:42 Player: 4R-ZE3 Result: Destroyed by Y-45 Defender with Heavy Assault Rifle Performance ------------- Evolutions (2) 1000 Regions Visited (4) 800 Robots Destroyed (26) 130 Value Destroyed (598) 598 Prototype IDs (19) 380 Alien Tech Used (0) 0 Bonus (166) 166 TOTAL SCORE: 3074 Bonus ------- Follower Combat Kills 166 Cogmind --------- Core Integrity 0/550 Matter 85/300 Energy 78/100 System Corruption 2% Temperature Cool (49) Movement Hovering (420) Ox6 Location -8/Storage Parts ------- > --- POWER (1) -------- (None) > --- PROPULSION (4) --- Improved Hover Unit > --- UTILITY (4) ------ High-capacity Storage Unit > --- WEAPON (2) ------- Enhanced Autogun Rocket Launcher > --- INVENTORY (20) --- V3-11A's Pendant Subdweller Laser Powered Cannon Enhanced Autogun Enhanced Autogun Enhanced Autogun Enhanced Autogun Enhanced Autogun Peak State ------------ > --- POWER ------------ Ion Engine > --- PROPULSION ------- Subdweller Monowheel Subdweller Monowheel > --- UTILITY ---------- Improved Heat Sink Medium Storage Unit Structural Scanner V3-11A's Pendant > --- WEAPON ----------- Heavy EM Shotgun Subdweller Machine Gun > --- INVENTORY -------- Meta Core Subdweller Laser Subdweller Laser Subdweller Laser Subdweller Laser Subdweller Beam Cannon Powered Cannon Battle Rifle [Rating: 22] Favorites ----------- Power Ion Engine Engine Ion Engine Power Core Meta Core Propulsion Light Treads Treads Light Treads Wheel Subdweller Monowheel Hover Unit Improved Hover Unit Flight Unit Flight Unit Utility Medium Storage Unit Device V3-11A's Pendant Storage Medium Storage Unit Protection Core Shielding Weapon Subdweller Machine Gun Energy Gun Subdweller Laser Energy Cannon Beam Cannon Ballistic Gun Subdweller Machine Gun Launcher Rocket Launcher Build | -11 -10 -10 -8 -8 ------- Run | Yrd Mat Sub Mat Sto Slots Evolved 4 | . . . 4 . Power . | . . . . . Propulsion 2 | . . . 2 . Utility 2 | . . . 2 . Weapon . | . . . . . Parts Attached 33 | 6 6 8 7 6 Power 4 | 1 . 2 1 . Engine 3 | 1 . 2 . . Core 1 | . . . 1 . Reactor . | . . . . . Propulsion 8 | 2 . 3 2 1 Treads 3 | 2 . . . 1 Leg . | . . . . . Wheel 3 | . . 3 . . Hover 1 | . . . 1 . Flight 1 | . . . 1 . Utility 7 | 1 3 1 1 1 Device 3 | . 1 1 1 . Storage 3 | 1 1 . . 1 Processor . | . . . . . Hackware . | . . . . . Protection 1 | . 1 . . . Artifact . | . . . . . Weapon 14 | 2 3 2 3 4 Energy Gun 5 | 1 . . 3 1 Energy Cannon 1 | . 1 . . . Ballistic Gun 7 | 1 2 2 . 2 Ballistic Cannon . | . . . . . Launcher 1 | . . . . 1 Special Weapon . | . . . . . Impact Weapon . | . . . . . Slashing Weapon . | . . . . . Piercing Weapon . | . . . . . Special Melee Weapon . | . . . . . Unidentified Prototypes 3 | . . 1 1 1 Parts Lost 10 | . . 3 7 . Power 2 | . . 1 1 . Propulsion 5 | . . 2 3 . Utility . | . . . . . Weapon 3 | . . . 3 . Highest Loss Streak 7 | . . 2 7 . To Critical Strikes . | . . . . . Average Backups 8 | . 6 9 6 5 Power 1 | . 1 1 . . Propulsion . | . . . . . Utility 3 | . 1 3 . 1 Weapon 4 | . 3 4 5 4 Tool/Special . | . . . . . Unused Backups 14 | . . 7 2 5 Power 1 | . . 1 . . Propulsion . | . . . . . Utility 2 | . . 2 . . Weapon 11 | . . 4 2 5 Tool/Special . | . . . . . Average Slot Usage (%) 72 | . 89 71 66 34 Engine 7 | . 14 6 6 . Treads 6 | . 28 1 . 6 Wheel 5 | . . 6 15 . Device 9 | . 2 10 21 . Storage 13 | . 14 14 7 4 Protection 2 | . 1 3 . . Energy Cannon 1 | . 8 . . . Ballistic Gun 24 | . 17 28 14 6 Peak Build Rating 22 | 6 10 17 22 17 Average Rating 9 | 4 6 10 16 11 On Entrance 7 | . 6 8 17 4 Avg Prop Armor Cover (%) 7 | . . 4 . 14 Naked Turns 24 | . . . 24 . Heaviest Build 47 | 10 22 22 24 47 Greatest Support 40 | 40 40 40 40 20 Greatest Overweight (x) 7 | . . 7 . 2 Average Overweight (x) 1 | . . 2 . . Largest Inventory Capacity 20 | 8 10 10 10 20 Average Capacity 9 | 6 9 10 9 13 Most Carried 10 | 2 10 10 9 9 Average Carried 8 | 1 6 9 7 6 Final Capacity 20 | 8 10 10 5 20 Final Carried 10 | 2 10 10 5 9 Class Distribution -------------------- 95% | Mutant 4% | Scavenger-Mutant Dominant Class ---------------- Mutant | -10/Materials Mutant | -10/Subcaves Scavenger-Mutant | -8/Materials Mutant | -8/Storage Resources | -11 -10 -10 -8 -8 ----------- Run | Yrd Mat Sub Mat Sto Matter Collected 651 | 150 233 151 105 12 Remotely . | . . . . . Salvage Created 690 | . 231 127 218 114 Parts 50 | . 20 8 16 6 Haulers Intercepted . | . . . . . Recyclers Shooed . | . . . . . Parts Field Recycled . | . . . . . Retrieved Matter . | . . . . . Parts Self-Destructed 4 | . . 4 . . Prevented . | . . . . . Parts Restored . | . . . . . Kills | -11 -10 -10 -8 -8 ------- Run | Yrd Mat Sub Mat Sto Combat Hostiles Destroyed 24 | . 10 6 6 2 Guns 21 | . 7 6 6 2 Cannons 3 | . 3 . . . Classes Destroyed 8 | . 2 1 3 2 Worker 1 | . . . . 1 Recycler 1 | . . . 1 . Swarmer 13 | . 6 4 3 . Grunt 6 | . 4 . 1 1 Brawler 1 | . . . 1 . Duelist 1 | . . . . 1 Hunter 1 | . . . 1 . Subdweller 2 | . . 2 . . Best Kill Streak 7 | . 3 4 7 2 Combat Bots Only 6 | . 3 4 6 2 Max Kills in Single Turn 2 | . 2 1 2 1 Gunslinging 1 | . 1 . . . Exploded . | . . . . . Melee . | . . . . . Uniques/NPCs Destroyed . | . . . . . Combat | -11 -10 -10 -8 -8 -------- Run | Yrd Mat Sub Mat Sto Hostile Shots Fired 231 | . 48 45 93 45 Missed 65 | . 10 12 32 11 Hits 166 | . 38 33 61 34 Melee 3 | . . . . 3 Projectile 163 | . 38 33 61 31 AOE 1 | . . 1 . . Critical Strikes 7 | . 1 . 2 4 Damage Taken 2331 | . 365 524 872 570 Core 662 | . 32 65 376 189 Absorbed by Shields . | . . . . . Redirected to Shielding 6 | . . 6 . . Core Remaining (%) 80 | 100 . 61 . . Volleys Fired 77 | . 26 19 13 19 Largest 2 | . 2 2 2 2 Hottest 120 | . 80 40 120 60 Shots Fired 145 | . 52 31 26 36 Gun 129 | . 37 31 26 35 Cannon 15 | . 15 . . . Launcher 1 | . . . . 1 Special . | . . . . . Kinetic 118 | . 31 31 22 34 Thermal 26 | . 21 . 4 1 Explosive 1 | . . . . 1 Electromagnetic . | . . . . . Robot Hit Streak 8 | . 8 6 6 8 Robot Miss Streak 4 | . 4 4 3 4 Penetration Max . | . . . . . Secondary Targets 5 | . 2 1 . 2 Max Gunslinging Chain 1 | . 1 1 . 1 Shots Hit Robots 90 | . 33 17 18 22 Core Hits 37 | . 14 8 10 5 Critical Kills . | . . . . . Critical Parts Destroyed . | . . . . . Critical Strikes . | . . . . . Melee Attacks . | . . . . . Impact . | . . . . . Slashing . | . . . . . Piercing . | . . . . . Sneak Attacks . | . . . . . Combat Hostiles . | . . . . . Follow-up Attacks . | . . . . . Damage Inflicted 1417 | . 415 267 350 385 Guns 1205 | . 203 267 350 385 Cannons 212 | . 212 . . . Explosions . | . . . . . Melee . | . . . . . Ramming . | . . . . . Kinetic 1076 | . 181 267 266 362 Thermal 341 | . 234 . 84 23 Explosive . | . . . . . Electromagnetic . | . . . . . Impact . | . . . . . Slashing . | . . . . . Piercing . | . . . . . Highest Corruption 2 | . . . . 2 Average Corruption 2 | . . . . 2 Corruption Purged . | . . . . . Corruption Blocked . | . . . . . Effects 3 | . . . . 3 Message Errors 2 | . . . . 2 Alerts 1 | . . . . 1 Overload Shots . | . . . . . Overflow Damage . | . . . . . Projectiles . | . . . . . Explosions . | . . . . . Melee . | . . . . . Knockbacks . | . . . . . Impact . | . . . . . Kinetic . | . . . . . Secondary . | . . . . . Self-Inflicted Damage . | . . . . . Shots . | . . . . . Rammed . | . . . . . Targets Rammed . | . . . . . Kicked . | . . . . . Crushed . | . . . . . Highest Temperature 183 | . 183 . 114 74 Average Temperature 69 | . 81 . 63 28 Received Heat Transfer 882 | . 117 36 450 279 Siege Activations . | . . . . . Martial Activations . | . . . . . Shielding Activations . | . . . . . Robots Disrupted . | . . . . . Combat Hostiles . | . . . . . Robots Corrupted . | . . . . . Combat Hostiles . | . . . . . Parts Fried . | . . . . . Impact Corruptions . | . . . . . Robots Melted . | . . . . . Combat Hostiles . | . . . . . Parts Melted . | . . . . . Heat Transferred 619 | . 494 . 100 25 Parts Sabotaged . | . . . . . Parts Stolen . | . . . . . Parts Stripped . | . . . . . Power Chain Reactions . | . . . . . Alert | -11 -10 -10 -8 -8 ------- Run | Yrd Mat Sub Mat Sto Maximum Alert Level . | . . . . . Low Security (%) 100 | 100 100 . 100 100 Level 1 . | . . . . . Level 2 . | . . . . . Level 3 . | . . . . . Level 4 . | . . . . . Level 5 . | . . . . . High Security . | . . . . . Max Security . | . . . . . Peak Influence 178 | . 100 . 178 72 Initial 72 | . . . 11 72 Average 45 | . 45 . 63 43 Influence Increases 972 | . 280 255 373 64 Destroy 0b10 Robot/C 560 | . 200 140 180 40 Destroy 0b10 Robot/NC 25 | . . . 20 5 Destroy Leader 102 | . 40 . 52 10 Allied During Kill 22 | . . 10 12 . Successful Hack 10 | . 10 . . . Select Force Hacks 90 | . 30 . 60 . Destroy Structure 13 | . . . 4 9 Lose Combat Pursuer 150 | . . 105 45 . Influence Decreases 926 | . 261 251 223 191 Entered New Map 123 | . . 10 12 101 Time Decay 635 | . 261 203 81 90 Lost Part 80 | . . 10 70 . Lost Ally 88 | . . 28 60 . Squads Dispatched 4 | . 1 . 2 1 Investigation 3 | . 1 . 2 . Extermination . | . . . . . Reinforcement 1 | . . . . 1 Assault . | . . . . . Garrison . | . . . . . Intercept . | . . . . . Searches Triggered . | . . . . . Construction Impeded . | . . . . . Haulers Reinforced . | . . . . . Active Scanning Responses . | . . . . . Cargo Convoy Interrupts . | . . . . . Stealth | -11 -10 -10 -8 -8 --------- Run | Yrd Mat Sub Mat Sto Distress Signals 2 | . . . 2 . Communications Jammed . | . . . . . Distress Signals . | . . . . . Times Spotted 59 | . 11 21 19 8 Peak Tracking Total 10 | . 3 6 10 8 Tactical Retreats 4 | . . 3 1 . Traps | -11 -10 -10 -8 -8 ------- Run | Yrd Mat Sub Mat Sto Traps Triggered 3 | . 1 1 . 1 Indirectly . | . . . . . Trap Hack Attempts . | . . . . . Triggered . | . . . . . Disarmed . | . . . . . Reprogrammed . | . . . . . Reused . | . . . . . Traps Extracted . | . . . . . Installed . | . . . . . Triggered . | . . . . . Machines | -11 -10 -10 -8 -8 ---------- Run | Yrd Mat Sub Mat Sto Machines Disabled 3 | . . 3 . . Max in Single Turn 1 | . . 1 . . Machines Repaired . | . . . . . Machines Dismantled . | . . . . . Machines Sabotaged . | . . . . . Overloaded Fab Kills . | . . . . . Hacking | -11 -10 -10 -8 -8 --------- Run | Yrd Mat Sub Mat Sto Machines Accessed 11 | . 4 1 3 3 Terminals 7 | . 3 . 1 3 Fabricators . | . . . . . Repair Stations . | . . . . . Recycling Units 3 | . 1 . 2 . Scanalyzers . | . . . . . Garrison Access . | . . . . . Total Hacks 27 | . 8 9 4 6 Successful 20 | . 5 9 4 2 Failed 7 | . 3 . . 4 Catastrophic 2 | . 2 . . . Database Lockouts . | . . . . . Manual 14 | . 7 . 4 3 Terminals 15 | . 7 . 2 6 Fabricators . | . . . . . Repair Stations . | . . . . . Recycling Units 3 | . 1 . 2 . Scanalyzers . | . . . . . Garrison Access . | . . . . . Terminal Hacks 14 | . 3 9 1 1 Record 8 | . . 8 . . Robot Analysis 2 | . 2 . . . Prototype ID Bank 1 | . 1 . . . Open Door 1 | . . . . 1 Branch Access Points 1 | . . . 1 . Proto ID Catalog 1 | . . 1 . . Fabricator Hacks . | . . . . . Repair Station Hacks . | . . . . . Recycling Unit Hacks . | . . . . . Scanalyzer . | . . . . . Garrison Access Hacks . | . . . . . Unauthorized Hacks 6 | . 2 . 3 1 Terminals 3 | . 1 . 1 1 Botnet 3 | . 1 . 1 1 Fabricators . | . . . . . Repair Stations . | . . . . . Recycling Units 3 | . 1 . 2 . Tunnel 3 | . 1 . 2 . Scanalyzers . | . . . . . Garrison Access . | . . . . . Data Cores Recovered . | . . . . . Used . | . . . . . Hacking Detections 6 | . 3 . . 3 Full Trace Events . | . . . . . Feedback Events . | . . . . . Feedback Blocked . | . . . . . Robot Schematics Acquired . | . . . . . Robots Built . | . . . . . Authchips . | . . . . . Time . | . . . . . Total Robot Build Rating . | . . . . . Part Schematics Acquired . | . . . . . Parts Built . | . . . . . Authchips . | . . . . . Time . | . . . . . Total Part Build Rating . | . . . . . Part Studies Acquired . | . . . . . Parts Repaired . | . . . . . Time . | . . . . . Parts Recycled . | . . . . . Recycled Matter . | . . . . . Retrieved Matter . | . . . . . Retrieved Components . | . . . . . Parts Scanalyzed . | . . . . . Part Schematics Acquired . | . . . . . Parts Damaged . | . . . . . Bothacking | -11 -10 -10 -8 -8 ------------ Run | Yrd Mat Sub Mat Sto Used RIF Installer . | . . . . . Robots Hacked . | . . . . . Non-combat . | . . . . . Combat . | . . . . . Robot Hacks Applied . | . . . . . Relay Couplers Released . | . . . . . Fabnet Peak Effective % . | . . . . . Robots Rewired . | . . . . . Allies Hacked . | . . . . . Hacks Repelled . | . . . . . Allies | -11 -10 -10 -8 -8 -------- Run | Yrd Mat Sub Mat Sto Total Allies 14 | . . 14 . . Largest Group 8 | . . 8 4 . Highest-Rated Group 153 | . . 153 76 . Highest-Rated Ally 20 | . . 20 19 . Total Orders . | . . . . . Ally Attacks 61 | . . 28 33 . Total Damage 919 | . . 371 548 . Kills 11 | . . 4 7 . Allies Corrupted . | . . . . . Allies Melted . | . . . . . Intel | -11 -10 -10 -8 -8 ------- Run | Yrd Mat Sub Mat Sto Active Infowar (turns) 198 | . . . 198 . Structural 198 | . . . 198 . Robot Analysis Total 2 | . 2 . . . Derelict Logs Recovered 1 | . . 1 . . Drone Launches . | . . . . . Drone Recoveries . | . . . . . Exploration | -11 -10 -10 -8 -8 ------------- Run | Yrd Mat Sub Mat Sto Turns Passed 3973 | 74 628 2855 229 187 Spaces Moved 1939 | 43 324 1291 186 95 Core 591 | 4 . 543 44 . Treads 582 | 39 324 200 . 19 Legs . | . . . . . Wheels 682 | . . 548 134 . Hover 80 | . . . 4 76 Flight 4 | . . . 4 . Fastest Speed 40 | 50 160 110 40 60 Average Speed 183 | 149 160 206 93 136 Slowest Speed 400 | 160 160 400 110 330 Overloaded Moves . | . . . . . Propulsion Burnouts . | . . . . . Robots Hopped 1 | . . . 1 . Potential Cave-ins . | . . . . . Cave-ins Triggered . | . . . . . Exploration Rate (%) 37 | 4 56 86 23 17 Regions Visited 4 Branch Regions 2 Pre-discovered Areas 4 | . 1 1 2 . Known Exits Taken 1 | . . . 1 . Unknown Exits Taken 3 | 1 1 1 . . Scrap Searched 7 | . . 7 . . Spaces Dug . | . . . . . Terrain Destroyed 10 | . . . 1 9 Melee . | . . . . . Projectile 1 | . . . 1 . AOE 9 | . . . . 9 Terrain Rammed . | . . . . . Walls Destroyed . | . . . . . Machines Disabled . | . . . . . Actions | -11 -10 -10 -8 -8 --------- Run | Yrd Mat Sub Mat Sto Total 2233 | 50 385 1456 215 127 Wait 134 | . 15 116 3 . Move 1933 | 42 323 1290 183 95 Hop 1 | . . . 1 . Pick Up 27 | 2 9 9 2 5 Fast Attach 19 | 6 4 4 2 3 Attach 9 | . . 1 6 2 Detach 3 | . 1 . 1 1 Swap 10 | . 4 3 1 2 Drop 20 | . 3 14 3 . Fire 77 | . 26 19 13 19 Melee . | . . . . . Ram . | . . . . . Kick . | . . . . . Crush . | . . . . . Escape Stasis . | . . . . . Rewire . | . . . . . Trap . | . . . . . Miscellaneous . | . . . . . Route ------- -11/Scrapyard -10/Materials (discovered 3 exits: [*Mat] / [*Min] / *Sub) -10/Subcaves (discovered 3 exits: *Mat x2 / [*Rec]) -8/Materials (discovered 2 exits: *Sto x2) -8/Storage History --------- Turn | Location | Event 8 | -11/Scrapyard | Discovered new exit (range 14) 75 | -11/Scrapyard | Entered Materials 302 | -10/Materials | Build established: Mutant 531 | -10/Materials | Discovered new exit (range 8) 555 | -10/Materials | Discovered new exit (range 14) 690 | -10/Materials | Discovered new exit (range 6) 703 | -10/Materials | Entered Subcaves 703 | -10/Subcaves | Discovered new exit (range 9) 820 | -10/Subcaves | Visited 4L-MR0's lab 929 | -10/Subcaves | Learned location of Zion (-7) 929 | -10/Subcaves | Met a Zionite searching for "candidates" 1307 | -10/Subcaves | Visited triangular shrine 1326 | -10/Subcaves | Found Prototype Device 1326 | -10/Subcaves | Identified V3-11A's Pendant 1331 | -10/Subcaves | Befriended Subdweller 1502 | -10/Subcaves | A swath of the cavern ceiling suddenly collapsed 2001 | -10/Subcaves | Learned Materials stockpile data 2041 | -10/Subcaves | Befriended Subdweller 2041 | -10/Subcaves | Befriended Subdweller 2260 | -10/Subcaves | Shifting Twisted Machinery released Sub. Machine Gun 2267 | -10/Subcaves | Shifting Twisted Machinery released Riot Gun 2466 | -10/Subcaves | Befriended Subdweller 2742 | -10/Subcaves | Ambushed by Subdwellers from Twisted Machinery 2746 | -10/Subcaves | Befriended Subdweller 2746 | -10/Subcaves | Befriended Subdweller 2754 | -10/Subcaves | Discovered new exit (range 15) 2831 | -10/Subcaves | Befriended Subdweller 2846 | -10/Subcaves | Befriended Subdweller 2972 | -10/Subcaves | Discovered new exit (range 12) 2999 | -10/Subcaves | Lost 4 allies 3003 | -10/Subcaves | A Subdweller sparked back to life 3003 | -10/Subcaves | A Subdweller sparked back to life 3006 | -10/Subcaves | Befriended Subdweller 3006 | -10/Subcaves | Befriended Subdweller 3006 | -10/Subcaves | Befriended Subdweller 3036 | -10/Subcaves | Befriended Subdweller 3041 | -10/Subcaves | Befriended Subdweller 3056 | -10/Subcaves | Befriended Subdweller 3289 | -10/Subcaves | Found Meta Core 3302 | -10/Subcaves | Lost 3 allies 3363 | -10/Subcaves | Found Powered Cannon 3558 | -10/Subcaves | Entered Materials 3558 | -8/Materials | Accompanied by 4 allies 3558 | -8/Materials | Evolved 4 slots: Propulsion x2, Utility x2 3612 | -8/Materials | Identified exit to Storage 3755 | -8/Materials | Core integrity fell below 50% 3756 | -8/Materials | Attached Meta Core, gained temporary slots: Propulsion, Utility, Weapon 3757 | -8/Materials | Released all parts (5) 3787 | -8/Materials | Entered Storage 3791 | -8/Storage | Lost 7 parts (1p3n3w) 3956 | -8/Storage | Core integrity fell below 20% 3974 | -8/Storage | Destroyed by Y-45 Defender with Heavy Assault Rifle Last Messages --------------- 03936_ U-05 Engineer builds a Wall. 03940_ U-05 Engineer lays Concrete. 03941_ U-05 Engineer builds a Wall. 03955_ Arm. Treads severed. 03959_ L-31 Rogue destroyed. 03959_ Switching to secondary target: G-47 Trooper. 03959_ K-01 Serf collects debris. 03960_ G-47 Trooper suffers critical hit (Burn). 03962_ K-01 Serf collects debris. 03964_ U-05 Engineer builds a Wall. 03965_ Critical hit (Burn: +37). 03966_ R-06 Scavenger collects Core Shielding. 03966_ Critical hit (Burn: +37). 03968_ Destroyed Lgt. Nuclear Core. 03970_ G-47 Trooper destroyed. 03970_ Switching to secondary target: Y-45 Defender. 03971_ R-06 Scavenger collects Aluminum Leg. Map ----- +----------------------------------------------------+ | | | | | | | | | | | | | | | | | | | ?????????????????????????????????????????????? | | ?????????????????????????????????????????????? | | ?????????????????????????????????????????????? | | ?????????????????????????????????????????????? | | ?????????????????????????????????????????????? | | ?????????????????????????????????????????????? | | ?????????????????????????????????????????????? | | ?????????????????????????????????????????????? | | ?#####?????????????#####?????????????????????? | | ?# #?????????????#! !#?????????????????????? | | ?# #?????????????#! !#?????????????????????? | | ?# #?????????????#! !#?????????????????????? | | ?# #?????????????#! !#?????????????????????? | | ?# #?????????????## ###????????????????????? | | ?# #?????####????# T#????????????????????? | | ## ########T######+##############??????????? | | #" ^ @%! gg ????????? | | #" % g ????????? | | #" ku r r Y w????????? | | #T ######## ######+###############?????????? | | #" # ] !# #?# T#?????????????????????? | | #" # ##?#" "##?????????????????????? | | #" # ####??# #??????????????????????? | | ## # *#?????# #??????????????????????? | | ?# #####/##?????#####??????????????????????? | | ?# #####!#?????????????????????????????????? | | ?# #?????????????????????????????????? | | ?# ##### #?????????????????????????????????? | | ?# #???# #?????????????????????????????????? | | ?##+##???# #?????????????????????????????????? | | ? ???# #?????????????????????????????????? | | # ?# #?????????????????????????????????? | | # # #?????????????????????????????????? | | # """" # ??????????????????????????????????? | | # """" # ??????????????????????????????????? | | # """" # ??????????????????????????????????? | | # """" ##??????????????????????????????????? | | # ???? ???????????????????????????????????? | | # ????????????????????????????????????????? | | ####"????????????????????????????????????????? | | ????"????????????????????????????????????????? | +----------------------------------------------------+ Best States ------------- Heat Dissipation 45 Energy Generation 10 Energy Capacity 250 Matter Stores 300 Matter Capacity 300 Sight Range 16 Terrain Scan Density 10 Core Shielding 20 Evasion (%) 62 Recoil Reduction 2 Item Schematics ----------------- None Robot Schematics ------------------ None Fabricated ------------ Nothing Repaired ---------- Nothing Studied --------- None Alien Tech Used ----------------- None Achievements -------------- None Challenges ------------ None Game ------ Seed MetafieldPlasmaInverter Manual? 0 Play Time 00:22:22 Cumulative 317.0 hours Start 2026.09.01 @ 23:36:39 End 2026.09.01 @ 23:57:42 Sessions 1 Manual Loads 0 Difficulty Rogue Special Mode None Game No. 304 Rogue 250 Adventurer 54 Explorer 0 Win Type - Total 13 Types 9/0/1/1/0/0/0/1/0/1 Lore% 78 Gallery% 68 Achievement% 62 Wizard Run 0 Options --------- Layout 1 ASCII 0 Keyboard 0 Movement Mouse Keybinds 1 Fullscreen 2 Font 32/Tamsyn Map View 50x35 Zoom Use 0% Tactical HUD 1 Map Filters NONE Filters NONE Steam 1 RUN: 86622bc1-9576-4c3b-8e85-ccccaf00daca